lending/lending_fUSD_20240605
["ID","MTS","AMOUNT","RATE_DAILY","PERIOD"]
[328589828,1717575706700,-500.0,0.00043,120]
[328589829,1717575706723,-500.0,0.00043,120]
[328589830,1717575706745,-481.80658234,0.00043,30]
[328589831,1717575706769,-500.0,0.00043,120]
[328589832,1717575706792,-500.0,0.00043,120]
[328589833,1717575706815,-500.0,0.00043,120]
[328589834,1717575706837,-500.0,0.00043,120]
[328589835,1717575706860,-500.0,0.00043,120]
[328589836,1717575706883,-500.0,0.00043,120]
[328589837,1717575706906,-479.46,0.00043,120]
[328589838,1717575706929,-1000.0,0.00043,120]
[328589839,1717575706950,-1000.0,0.00043,120]
[328589840,1717575706973,-1000.0,0.00043,120]
[328589841,1717575706996,-1000.0,0.00043,120]
[328589842,1717575707019,-1000.0,0.00043,120]
[328589843,1717575707041,-1000.0,0.00043,120]
[328589844,1717575707064,-1000.0,0.00043,120]
[328589845,1717575707087,-1114.00531035,0.00043,30]
[328589846,1717575707109,-1000.0,0.00043,120]
[328589847,1717575707131,-504.2,0.00043,120]
[328589848,1717575707154,-4800.0,0.00043,120]
[328589849,1717575707176,-30475.78943904,0.00043,120]
[328589850,1717575707199,-1000000.0,0.00043,30]
[328589851,1717575707222,-517.71012813,0.00043,30]
[328589852,1717575707249,-3356.58234874,0.00043,30]
[328589853,1717575707272,-9762.67917236,0.00043,30]
[328589854,1717575707296,-220.0,0.00043,120]
[328589855,1717575707322,-4519.97874608,0.00043,30]
[328589856,1717575707345,-613.36,0.00043,120]
[328589857,1717575707367,-2500.0,0.00043,120]
[328589858,1717575707390,-2506.33759204,0.00043,60]
[328589859,1717575707412,-659.03,0.00043,120]
[328589860,1717575707435,-319.67894864,0.00043,120]
[328589861,1717575707460,-645.36,0.00043,120]
[328589862,1717575707484,-561.04736987,0.00043,30]
[328589863,1717575707507,-80000.0,0.000432,30]
[328589864,1717575707531,-2310.0027964,0.000433,60]
[328589865,1717575707556,-2546.0,0.000435,120]
[328589866,1717575707579,-166229.08069122,0.000435,30]
[328589867,1717575707602,-283491.80664862,0.000435,33]
[328589868,1717575707626,-600.0,0.00043526,30]
[328589869,1717575707649,-188.48013818,0.00043526,30]
[328589870,1717575707671,-520.50285359,0.00043535,120]
[328589871,1717575707697,-159.03854422,0.00043542,120]
[328589872,1717575707848,-332.96968021,0.00043547,120]
[328589873,1717575707875,-958.17491174,0.00043548,120]
[328589874,1717575707897,-285.81304545,0.00043556,120]
[328589875,1717575707920,-332.96968021,0.00043556,120]
[328589876,1717575707945,-164.59963176,0.00043561,120]
[328589877,1717575707968,-41309.45522822,0.0004357,120]
[328589878,1717575707992,-1483.23706747,0.0004357,120]
[328589879,1717575708015,-159.03854422,0.0004357,120]
[328589880,1717575708038,-709.5560728,0.00043571,120]
[328589881,1717575708062,-520.50285359,0.00043573,120]
[328589882,1717575708083,-520.50285359,0.00043575,120]
[328589883,1717575708107,-332.96968021,0.00043575,120]
[328589884,1717575708130,-1483.23706747,0.0004358,120]
[328589885,1717575708154,-709.5560728,0.00043583,120]
[328589886,1717575708177,-709.5560728,0.00043584,120]
[328589887,1717575708201,-958.17491174,0.00043585,120]
[328589888,1717575708224,-353.06336408,0.00043593,120]
[328589889,1717575708251,-353.06336408,0.00043597,120]
[328589890,1717575708275,-958.17491174,0.00043609,120]
[328589891,1717575708297,-41309.45522822,0.00043612,120]
[328589892,1717575708321,-1483.23706747,0.00043636,120]
[328589893,1717575708345,-164.59963176,0.00043646,120]
[328589894,1717575708367,-285.81304545,0.00043648,120]
[328589895,1717575708390,-353.06336408,0.00043664,120]
[328589896,1717575708413,-285.81304545,0.00043668,120]
[328589897,1717575708436,-41309.45522822,0.00043686,120]
[328589898,1717575708458,-164.59963176,0.00043689,120]
[328589899,1717575708481,-159.03854422,0.00043698,120]
[328589900,1717575708503,-472.81920116,0.00043733,120]
[328589901,1717575708525,-352.0576247,0.0004377,120]
[328589902,1717575708549,-227224.83457443,0.000438,30]
[328589903,1717575714053,218.74758305,0.000201,2]
[328589904,1717575714390,-599.77715314,0.00038,120]
[328589905,1717575714423,-49130.97695201,0.000438,30]
[328589906,1717575714447,-204.43854007,0.000438,120]
[328589907,1717575714470,-464.56495675,0.000438,30]
[328589908,1717575714494,-150.0,0.000438,30]
[328589909,1717575714517,-10000.0,0.0004381,60]
[328589910,1717575716975,269.179,0.00042655,30]
[328589911,1717575723164,130464.73255478,0.000329,30]
[328589912,1717575730048,155.0,0.000201,2]
[328589913,1717575794567,155.0,0.000201,2]
[328589914,1717575804559,226.57668191,0.000201,2]
[328589915,1717575806553,155.0,0.000201,2]
[328589916,1717575830572,155.0,0.000201,2]
[328589917,1717575844553,155.0,0.000201,2]
[328589918,1717575860576,155.0,0.000201,2]
[328589919,1717575878558,155.0,0.000201,2]
[328589920,1717575896560,163.55659186,0.000201,2]
[328589923,1717576004079,226.57668191,0.000201,2]
[328589924,1717576054391,155.76190798,0.000201,2]
[328589925,1717576074447,1157.45765825,0.0002004,2]
[328589926,1717576079076,600.81299312,0.000201,2]
[328589927,1717576098587,524.93081759,0.00017259,2]
[328589928,1717576122275,208.03390212,0.00017259,2]
[328589929,1717576127013,1292.72381759,0.000192,2]
[328589930,1717576136144,1046.18219115,0.00017259,2]
[328589934,1717576176771,155.0,0.00017259,2]
[328589935,1717576186432,906.49412402,0.00017259,2]
[328589936,1717576196197,28001.06004987,0.00017259,2]
[328589938,1717576232485,-155.0,0.0002,2]
[328589939,1717576232496,-2075.62857016,0.0002004,2]
[328589940,1717576232506,-157.53007407,0.0002004,2]
[328589941,1717576232515,-226.57668191,0.000201,2]
[328589942,1717576232525,-608.4113732,0.00022183,2]
[328589943,1717576233650,-776.61022031,0.00022183,2]
[328589944,1717576233665,-322.91174239,0.00022183,2]
[328589945,1717576233746,-271.8092354,0.00022183,2]
[328589946,1717576233756,-367.17922175,0.00022184,2]
[328589947,1717576233768,-132.82077825,0.00022184,2]
[328589948,1717576233777,-500.0,0.00022184,2]
[328589949,1717576233787,-305.3920166,0.00022184,2]
[328589950,1717576233801,-194.6079834,0.00022184,2]
[328589951,1717576233811,-430.30729777,0.00022184,2]
[328589952,1717576233824,-69.69270223,0.00022184,2]
[328589953,1717576233834,-196.19333736,0.00022184,2]
[328589954,1717576233845,-303.80666264,0.00022184,2]
[328589955,1717576233855,-148.11826509,0.00022184,2]
[328589968,1717576238315,-2.88173491,0.00022184,2]
[328589969,1717576238325,-500.0,0.00022184,2]
[328589970,1717576238335,-500.0,0.00022184,2]
[328589971,1717576238344,-151.0,0.00022184,2]
[328589972,1717576238354,-82.02239949,0.00022184,2]
[328589973,1717576238588,-371.01830304,0.00022184,2]
[328589990,1717576243483,-121.95929747,0.00022184,2]
[328589991,1717576243493,-151.0,0.00022184,2]
[328589992,1717576243504,-151.0,0.00022184,2]
[328589993,1717576243514,-151.0,0.00022184,2]
[328589994,1717576243524,-151.0,0.00022184,2]
[328589995,1717576243534,-193.0,0.00022184,2]
[328589997,1717576243543,-500.0,0.00022184,2]
[328589999,1717576243552,-500.0,0.00022184,2]
[328590001,1717576243563,-500.0,0.00022184,2]
[328590003,1717576243572,-500.0,0.00022184,2]
[328590005,1717576243582,-500.0,0.00022184,2]
[328590007,1717576243591,-500.0,0.00022184,2]
[328590009,1717576243601,-500.0,0.00022184,2]
[328590011,1717576243611,-795.0,0.00022184,2]
[328590013,1717576243621,-240.68,0.00024384,2]
[328590015,1717576243630,-165.46,0.00024384,2]
[328590017,1717576243639,-299.99,0.00025848,12]
[328590019,1717576243648,-454.77,0.00025848,2]
[328590037,1717576243823,-172.79,0.00026953,2]
[328590038,1717576243833,-117.28870123,0.00026953,2]
[328590039,1717576243845,-395.28129877,0.00026953,2]
[328590040,1717576243855,-250.0,0.000272,2]
[328590041,1717576243863,-1471.35688726,0.00027372,2]
[328590042,1717576243894,-1606.34010887,0.00027372,2]
[328590043,1717576243912,-934.60492015,0.00027372,2]
[328590097,1717576246626,-6218.45808372,0.00027372,2]
[328590098,1717576246636,-167.17,0.00027439,2]
[328590099,1717576246645,-250.0,0.00027513,2]
[328590100,1717576246655,-359.32,0.00027601,2]
[328590101,1717576246664,-208.03390212,0.00027759,2]
[328590102,1717576246673,-158.94,0.0002776,2]
[328590103,1717576246682,-1000.0,0.00027834,2]
[328590104,1717576246691,-160.21,0.0002791,2]
[328590105,1717576246700,-150.0,0.00027912,2]
[328590106,1717576246709,-150.0,0.00027912,2]
[328590107,1717576246719,-150.0,0.00027912,2]
[328590108,1717576246729,-454.77,0.00028112,2]
[328590109,1717576246738,-158.94,0.00028122,2]
[328590110,1717576246747,-150.0,0.00028178,2]
[328590111,1717576246756,-158.94,0.00028484,2]
[328590112,1717576246766,-1262.0,0.00028769,2]
[328590113,1717576246776,-354.81801416,0.00028785,2]
[328590118,1717576578592,524.93081759,0.00017533,2]
[328590120,1717576600959,43806.21931586,0.00014,2]
[328590121,1717576600987,515222.92044126,0.00014,2]
[328590122,1717576674801,262.49709966,0.00014,2]
[328590123,1717576675595,155.0,0.00014,2]
[328590124,1717576679025,1362.79384792,0.00014,2]
[328590125,1717576686802,218.74758305,0.00014,2]
[328590126,1717576691587,265.55746367,0.00014,2]
[328590127,1717576698994,1369.30833067,0.00014,2]
[328590128,1717576704799,218.74758305,0.00014,2]
[328590129,1717576723187,363.5844828,0.00014,2]
[328590130,1717576724801,155.0,0.00014,2]
[328590131,1717576734577,1041.97356514,0.00014,2]
[328590132,1717576737798,20258.09102943,0.00014,2]
[328590133,1717576744806,155.0,0.00014,2]
[328590134,1717576756512,24649.52021455,0.00014,2]
[328590135,1717576758744,19766.6914247,0.00014,2]
[328590136,1717576764814,155.0,0.00014,2]
[328590137,1717576772497,11235.98396943,0.00014,2]
[328590138,1717576772538,19766.6914247,0.00014,2]
[328590139,1717576778912,957.42566488,0.000133,2]
[328590140,1717576784806,155.0,0.00014,2]
[328590141,1717576798525,239.95283927,0.00014,2]
[328590142,1717576806815,155.0,0.00014,2]
[328590144,1717576826812,155.0,0.00014,2]
[328590145,1717576842821,155.0,0.00014,2]
[328590146,1717576859010,163.55659186,0.00014,2]
[328590169,1717577431707,-208.03390212,0.00014899,2]
[328590170,1717577431717,-151.2305831,0.000149,2]
[328590171,1717577431727,-1046.3549582,0.00015,2]
[328590172,1717577431736,-21932.60529475,0.00015,2]
[328590174,1717577438386,-1000.22094915,0.00015,2]
[328590187,1717577440294,-2307.81966264,0.00015,2]
[328590188,1717577440567,-816.44970971,0.00015,2]
[328590204,1717577442789,-970.76240948,0.00015,2]
[328590229,1717577443131,-7356.99643982,0.00015,2]
[328590272,1717577448853,-645.27274604,0.00015,2]
[328590273,1717577449067,-2535.19776164,0.00015,2]
[328590274,1717577449077,-620.61980375,0.00017259,2]
[328590275,1717577449087,-411.46990394,0.00019,2]
[328590276,1717577449096,-1000.0,0.0001907,2]
[328590277,1717577449106,-499.99,0.00019178,2]
[328590278,1717577449116,-150.0,0.00019178,2]
[328590279,1717577449126,-1086.63,0.000192,2]
[328590280,1717577449135,-3890.25994623,0.00019451,2]
[328590281,1717577449144,-257.8719227,0.0002,2]
[328590282,1717577449154,-548.55290876,0.0002,2]
[328590283,1717577449164,-353.96696625,0.0002,10]
[328590284,1717577449173,-226.57668191,0.000201,2]
[328590285,1717577449184,-654.6,0.00023295,2]
[328590286,1717577449194,-1102.14092785,0.000235,2]
[328590287,1717577449207,-1537.8563208,0.000235,2]
[328590288,1717577449216,-174.49593959,0.00023607,2]
[328590289,1717577449228,-325.50406041,0.00023607,2]
[328590290,1717577449238,-169.63785959,0.00023607,2]
[328590291,1717577449249,-830.36214041,0.00023607,2]
[328590292,1717577449259,-300.0,0.00023607,2]
[328590293,1717577449269,-2000.0,0.00023607,2]
[328590294,1717577449278,-367.25332503,0.00023607,2]
[328590296,1717577452873,-632.74667497,0.00023607,2]
[328590298,1717577452884,-156.2,0.00024384,2]
[328590299,1717577452894,-171.82,0.00024384,2]
[328590300,1717577452904,-1621.27,0.00025089,2]
[328590302,1717577452915,-152.14,0.00025164,2]
[328590303,1717577452925,-152.14,0.00025172,2]
[328590304,1717577452935,-152.14,0.00025179,2]
[328590305,1717577452944,-152.14,0.00025186,2]
[328590306,1717577452954,-152.14,0.00025194,2]
[328590307,1717577452963,-152.14,0.00025201,2]
[328590308,1717577452973,-152.14,0.00025209,2]
[328590309,1717577452982,-152.14,0.00025216,2]
[328590310,1717577452992,-152.14,0.00025223,2]
[328590311,1717577453001,-152.14,0.00025231,2]
[328590312,1717577453011,-152.14,0.00025238,2]
[328590313,1717577453020,-152.14,0.00025246,2]
[328590314,1717577453030,-152.14,0.00025253,2]
[328590315,1717577453039,-152.14,0.0002526,2]
[328590316,1717577453049,-152.14,0.00025268,2]
[328590317,1717577453058,-152.14,0.00025275,2]
[328590318,1717577453068,-152.14,0.00025283,2]
[328590319,1717577453077,-152.14,0.0002529,2]
[328590320,1717577453086,-654.6,0.00025559,2]
[328590321,1717577453098,-212.04,0.00025925,2]
[328590322,1717577453107,-163.96,0.00026257,2]
[328590323,1717577453116,-161.15,0.00026869,2]
[328590324,1717577453125,-152.75,0.00026869,2]
[328590325,1717577453135,-466.76,0.00026869,2]
[328590326,1717577453144,-1000.0,0.00026869,2]
[328590327,1717577453154,-298.67,0.00026869,2]
[328590328,1717577453163,-250.0,0.00026869,2]
[328590329,1717577453172,-932.65663909,0.00026869,3]
[328590330,1717577453184,-962.90336091,0.00026869,3]
[328590331,1717577453194,-250.0,0.00026869,2]
[328590332,1717577453203,-500.0,0.00026869,2]
[328590333,1717577453212,-250.0,0.00026869,2]
[328590334,1717577453222,-182.3,0.00026869,2]
[328590335,1717577453231,-3672.82,0.00026869,2]
[328590336,1717577453240,-159.42,0.00026869,2]
[328590337,1717577453250,-466.76,0.00026877,2]
[328590338,1717577453260,-466.76,0.00026884,2]
[328590339,1717577453269,-466.76,0.00026891,2]
[328590340,1717577453278,-466.76,0.00026898,2]
[328590341,1717577453288,-466.76,0.00026905,2]
[328590342,1717577453297,-466.76,0.00026912,2]
[328590343,1717577453306,-466.76,0.00026919,2]
[328590344,1717577453315,-216.83179772,0.00026926,2]
[328590345,1717577453327,-249.92820228,0.00026926,2]
[328590346,1717577453336,-466.76,0.00026933,2]
[328590347,1717577453348,-466.76,0.0002694,2]
[328590348,1717577453361,-466.76,0.00026947,2]
[328590349,1717577453370,-466.76,0.00026954,2]
[328590350,1717577453380,-800.0,0.00026959,2]
[328590351,1717577453389,-466.76,0.00026961,2]
[328590352,1717577453399,-466.76,0.00026968,2]
[328590353,1717577453408,-466.76,0.00026975,2]
[328590354,1717577453418,-466.76,0.00026983,2]
[328590355,1717577453427,-199.89043559,0.00026986,2]
[328590359,1717577473427,5267.1746796,0.00014,2]
[328590361,1717577861394,54638.61384694,0.00014,2]
[328590409,1717578632054,-226.57668191,0.000201,2]
[328590410,1717578632064,-165.29677628,0.00024284,2]
[328590411,1717578632073,-168.76,0.00024384,2]
[328590412,1717578632083,-606.38,0.00024422,2]
[328590413,1717578632093,-1250.0,0.00025,2]
[328590414,1717578632103,-4895.51,0.00025255,2]
[328590415,1717578632112,-4945.88,0.00025469,2]
[328590416,1717578632122,-968.83,0.00026169,2]
[328590417,1717578632131,-182.3,0.00026196,2]
[328590418,1717578632141,-250.0,0.00026216,2]
[328590419,1717578632151,-173.46,0.00026216,2]
[328590420,1717578632160,-2447.87,0.00026227,2]
[328590421,1717578632169,-250.0,0.00026231,2]
[328590422,1717578632179,-210.99,0.00026388,2]
[328590423,1717578632188,-157.25,0.00026413,2]
[328590424,1717578632198,-159.42,0.00026493,2]
[328590425,1717578632212,-382.24980333,0.00026601,2]
[328590426,1717578632221,-606.38,0.00026686,2]
[328590427,1717578632231,-3509.0,0.000268,5]
[328590428,1717578632240,-1000.0,0.00026941,2]
[328590429,1717578632250,-1017.22731335,0.00026986,2]
[328590430,1717578632262,-982.77268665,0.00026986,2]
[328590431,1717578632270,-200.0,0.00026986,2]
[328590432,1717578632281,-2484.21857,0.00026986,2]
[328590433,1717578632291,-1734.73036956,0.00026986,2]
[328590434,1717578632301,-200.0,0.00026986,2]
[328590435,1717578632311,-600.10956441,0.00026986,2]
[328590436,1717578632320,-466.76,0.0002699,2]
[328590437,1717578632330,-1000.0,0.00026993,2]
[328590438,1717578632339,-466.76,0.00026997,2]
[328590440,1717578632350,-1300.0,0.00027,2]
[328590441,1717578632359,-466.76,0.00027004,2]
[328590442,1717578632368,-157.25,0.00027101,2]
[328590443,1717578632377,-579.83880938,0.00027256,2]
[328590444,1717578632420,-1305.98883978,0.00027256,2]
[328590446,1717578638125,-114.17235084,0.00027256,2]
[328590447,1717578638135,-200.0,0.00027256,2]
[328590448,1717578638144,-200.0,0.00027256,2]
[328590449,1717578638154,-543.97801469,0.00027363,2]
[328590450,1717578638165,-820.00055199,0.00027363,2]
[328590471,1717578640861,-272.12555121,0.00027363,2]
[328590472,1717578641045,-374.89588211,0.00027363,2]
[328590473,1717578641055,-800.0,0.0002737,2]
[328590474,1717578641065,-1011.18844906,0.00027389,2]
[328590475,1717578641075,-438.99109473,0.0002739,2]
[328590476,1717578641085,-207.05871685,0.00027397,2]
[328590540,1717578644076,-191.83128315,0.00027397,2]
[328590541,1717578644085,-2000.0,0.00027528,2]
[328590542,1717578644096,-200.0,0.00027528,2]
[328590543,1717578644107,-200.0,0.00027528,2]
[328590544,1717578644116,-151.59,0.00027569,2]
[328590545,1717578644127,-157.25,0.00027789,2]
[328590546,1717578644137,-2000.0,0.00027804,2]
[328590547,1717578644147,-200.0,0.00027804,2]
[328590548,1717578644157,-1414.22821001,0.00027936,2]
[328590549,1717578644179,-682.79726612,0.00027936,2]
[328590550,1717578644189,-842.6989607,0.00027936,2]
[328590551,1717578644199,-498.761,0.00027936,2]
[328590552,1717578644208,-669.64473318,0.00027936,2]
[328590708,1717578646141,-1885.91526682,0.00027936,2]
[328590709,1717578646151,-800.0,0.00027973,2]
[328590710,1717578646161,-800.0,0.00027973,2]
[328590711,1717578646171,-3171.33052436,0.0002799,2]
[328590712,1717578646180,-166.7914555,0.00027998,2]
[328590713,1717578646190,-353.96696625,0.00027998,10]
[328590714,1717578646199,-188.75184654,0.00027999,2]
[328590715,1717578646209,-2785.55502981,0.00028,5]
[328590723,1717578646309,-353.19497019,0.00028,5]
[328590725,1717578646319,-8914.04509995,0.00028,2]
[328590963,1717579832314,-226.57668191,0.000201,2]
[328590964,1717579832324,-157.18,0.00024384,2]
[328590965,1717579832333,-156.2,0.00024384,2]
[328590966,1717579832343,-591.48,0.00024556,2]
[328590967,1717579832353,-380.0,0.00024762,2]
[328590968,1717579832362,-380.03,0.00024764,2]
[328590969,1717579832372,-380.0,0.00024769,2]
[328590970,1717579832384,-380.0,0.0002477,2]
[328590971,1717579832392,-380.0,0.00024781,2]
[328590972,1717579832401,-379.36,0.00024786,2]
[328590973,1717579832410,-367.72,0.00024786,2]
[328590974,1717579832419,-380.0,0.00024789,2]
[328590975,1717579832428,-380.0,0.00024802,2]
[328590976,1717579832438,-380.0,0.00024806,2]
[328590982,1717579832604,-929.52174178,0.00025,2]
[328590986,1717579832630,-1250.0,0.00025,2]
[328590989,1717579832640,-3514.64144811,0.00025176,2]
[328590993,1717579832674,-423.8,0.00025176,2]
[328590995,1717579832686,-450.0,0.00025176,2]
[328591005,1717579838396,-487.472004,0.00025176,2]
[328591006,1717579838481,-6992.64824789,0.00025176,2]
[328591007,1717579838491,-1898.37,0.000257,2]
[328591008,1717579838501,-3053.6,0.00026043,2]
[328591009,1717579838510,-163.8,0.00026043,2]
[328591010,1717579838519,-697.85,0.00026043,2]
[328591011,1717579838529,-3058.14,0.00026043,2]
[328591012,1717579838538,-150.99,0.00026043,2]
[328591013,1717579838547,-250.0,0.00026057,2]
[328591014,1717579838556,-1000.0,0.00026142,2]
[328591015,1717579838565,-156.15,0.0002622,2]
[328591016,1717579838577,-159.42,0.00026273,2]
[328591017,1717579838586,-563.52,0.00026274,2]
[328591018,1717579838595,-250.0,0.00026339,2]
[328591019,1717579838604,-200.0,0.00026348,2]
[328591020,1717579838613,-203.1,0.00026379,2]
[328591021,1717579838624,-1000.0,0.00026565,2]
[328591022,1717579838634,-591.48,0.0002682,2]
[328591023,1717579838644,-1300.0,0.00027,2]
[328591024,1717579838656,-4870.25,0.0002701,2]
[328591025,1717579838665,-881.59,0.00027123,2]
[328591026,1717579838675,-847.53,0.00027123,2]
[328591027,1717579838684,-1000.0,0.000272,2]
[328591028,1717579838694,-4806.36,0.00027215,2]
[328591029,1717579838703,-151.0,0.00027446,7]
[328591030,1717579838712,-151.0,0.00027446,7]
[328591031,1717579838722,-151.0,0.00027446,7]
[328591032,1717579838732,-151.0,0.00027446,7]
[328591033,1717579838741,-151.0,0.00027446,7]
[328591034,1717579838750,-151.0,0.00027446,7]
[328591035,1717579838760,-151.0,0.00027446,7]
[328591036,1717579838769,-201.013076,0.00027446,7]
[328591037,1717579838778,-151.0,0.00027446,7]
[328591038,1717579838787,-151.0,0.00027446,7]
[328591039,1717579838796,-151.0,0.00027446,7]
[328591040,1717579838805,-307.25,0.00027446,7]
[328591041,1717579838814,-307.25,0.00027446,7]
[328591042,1717579838823,-151.0,0.00027446,7]
[328591043,1717579838832,-164.169577,0.00027446,7]
[328591044,1717579838842,-157.546022,0.00027446,7]
[328591045,1717579838851,-151.0,0.00027446,7]
[328591046,1717579838861,-178.827437,0.00027446,7]
[328591047,1717579838871,-151.0,0.00027446,7]
[328591048,1717579838880,-156.167935,0.00027446,7]
[328591049,1717579838891,-153.064095,0.00027446,7]
[328591050,1717579838900,-151.0,0.00027446,7]
[328591051,1717579838910,-151.0,0.00027446,7]
[328591052,1717579838919,-260.470772,0.00027446,7]
[328591053,1717579838928,-151.0,0.00027446,7]
[328591054,1717579838938,-151.0,0.00027446,7]
[328591055,1717579838947,-151.0,0.00027446,7]
[328591056,1717579838956,-151.0,0.00027446,7]
[328591057,1717579838965,-151.0,0.00027446,7]
[328591058,1717579838975,-151.0,0.00027446,7]
[328591059,1717579838984,-151.0,0.00027446,7]
[328591060,1717579838994,-151.0,0.00027446,7]
[328591061,1717579839003,-151.0,0.00027446,7]
[328591062,1717579839013,-151.0,0.00027446,7]
[328591063,1717579839023,-151.0,0.00027446,7]
[328591064,1717579839032,-151.0,0.00027446,7]
[328591065,1717579839042,-151.0,0.00027446,7]
[328591066,1717579839052,-151.0,0.00027446,7]
[328591067,1717579839062,-151.0,0.00027446,7]
[328591068,1717579839071,-152.525172,0.00027446,7]
[328591069,1717579839081,-151.0,0.00027446,7]
[328591070,1717579839091,-151.0,0.00027446,7]
[328591071,1717579839101,-151.0,0.00027446,7]
[328591072,1717579839110,-151.0,0.00027446,7]
[328591073,1717579839120,-256.259179,0.00027446,7]
[328591074,1717579839129,-151.0,0.00027446,7]
[328591075,1717579839139,-151.0,0.00027446,7]
[328591076,1717579839149,-4925.49,0.00027446,2]
[328591077,1717579839159,-206.06,0.00027534,2]
[328591078,1717579839168,-267.469,0.0002772,4]
[328591079,1717579839178,-267.469,0.0002772,4]
[328591080,1717579839188,-267.469,0.0002772,4]
[328591081,1717579839198,-267.469,0.0002772,4]
[328591082,1717579839207,-267.469,0.0002772,4]
[328591083,1717579839217,-22705.29671547,0.0002772,2]
[328591107,1717579841120,-151.0,0.00027446,7]
[328591108,1717579841130,-161.146453,0.00027446,7]
[328591109,1717579841141,-151.0,0.00027446,7]
[328591110,1717579841150,-247.008947,0.0002772,2]
[328591111,1717579841162,-10741.91805605,0.0002772,2]
[328591112,1717579841172,-153.745001,0.0002772,7]
[328591113,1717579841181,-151.0,0.0002772,7]
[328591114,1717579841190,-151.0,0.0002772,7]
[328591115,1717579841200,-169.364407,0.0002772,7]
[328591116,1717579841210,-155.836613,0.0002772,7]
[328591117,1717579841221,-151.0,0.0002772,7]
[328591118,1717579841231,-154.340096,0.0002772,7]
[328591119,1717579841240,-151.0,0.0002772,7]
[328591120,1717579841250,-151.0,0.0002772,7]
[328591121,1717579841260,-154.63034,0.0002772,7]
[328591122,1717579841270,-168.656491,0.0002772,7]
[328591123,1717579841279,-307.25,0.0002772,7]
[328591124,1717579841289,-307.25,0.0002772,7]
[328591125,1717579841299,-151.0,0.0002772,7]
[328591126,1717579841309,-154.566787,0.0002772,7]
[328591127,1717579841320,-187.872506,0.0002772,7]
[328591128,1717579841329,-151.0,0.0002772,7]
[328591129,1717579841339,-151.0,0.0002772,7]
[328591130,1717579841350,-161.342673,0.0002772,7]
[328591131,1717579841368,-151.0,0.0002772,7]
[328591132,1717579841380,-151.0,0.0002772,7]
[328591133,1717579841391,-151.0,0.0002772,7]
[328591134,1717579841401,-151.0,0.0002772,7]
[328591135,1717579841411,-289.145472,0.0002772,7]
[328591136,1717579841420,-151.0,0.0002772,7]
[328591137,1717579841430,-155.592357,0.0002772,7]
[328591138,1717579841441,-151.0,0.0002772,7]
[328591139,1717579841451,-151.0,0.0002772,7]
[328591140,1717579841461,-151.0,0.0002772,7]
[328591141,1717579841471,-155.423674,0.0002772,7]
[328591142,1717579841481,-151.0,0.0002772,7]
[328591143,1717579841491,-153.92874,0.0002772,7]
[328591144,1717579841501,-151.0,0.0002772,7]
[328591145,1717579841511,-151.0,0.0002772,7]
[328591146,1717579841522,-151.0,0.0002772,7]
[328591147,1717579841532,-171.680477,0.0002772,7]
[328591148,1717579841542,-151.0,0.0002772,7]
[328591149,1717579841551,-192.683197,0.0002772,7]
[328591150,1717579841713,-156.311234,0.0002772,7]